bitfinex-derivatives/quotes_BTCF0:USTF0_20250320
["timestamp","ask_amount","ask_price","bid_price","bid_amount"]
[1742465891203,0.0418,85231.0,85230.0,0.1173506]
[1742465891508,0.1331,85231.0,85230.0,0.1173506]
[1742465891703,0.0331,85231.0,85230.0,0.1173506]
[1742465891909,0.1331,85231.0,85230.0,0.1173506]
[1742465892110,0.1331,85231.0,85228.0,0.058676]
[1742465892311,0.0625,85230.0,85229.0,0.117352]
[1742465892502,0.1307,85230.0,85229.0,0.117352]
[1742465892702,0.0307,85230.0,85229.0,0.117352]
[1742465893212,0.0893757,85230.0,85227.0,0.4781948]
[1742465893508,0.1173534,85228.0,85227.0,4e-05]
[1742465893718,0.0332,85229.0,85219.0,0.0327]
[1742465893906,0.0332,85229.0,85226.0,0.1173562]
[1742465893907,0.0307,85227.0,85226.0,0.1173562]
[1742465894100,0.0307,85227.0,85218.0,0.42835722]
[1742465894101,0.1173562,85226.0,85225.0,4e-05]
[1742465894303,0.5113562,85226.0,85225.0,4e-05]
[1742465894518,0.394,85226.0,85225.0,0.1173975]
[1742465894713,0.42931119,85226.0,85225.0,0.1173575]
[1742465895113,0.46571119,85226.0,85225.0,0.1173575]
[1742465895312,0.58306739,85226.0,85225.0,0.1173575]
[1742465895617,0.46571119,85226.0,85225.0,0.1173575]
[1742465896206,0.46118575,85226.0,85225.0,0.1173575]
[1742465896408,0.46118575,85226.0,85208.0,0.3614]
[1742465896613,0.46118575,85226.0,85201.0,0.3608]
[1742465896614,0.3608,85216.0,85201.0,0.3608]
[1742465896815,0.07134391,85211.0,85210.0,0.1173782]
[1742465897114,0.01128242,85211.0,85210.0,0.1173782]
[1742465897617,0.0752,85215.0,85214.0,0.1173727]
[1742465897819,0.00148,85221.0,85220.0,0.1173644]
[1742465898018,0.0366,85225.0,85224.0,0.1173589]
[1742465898414,0.0570596,85226.0,85225.0,0.1173575]
[1742465898712,0.20603209,85231.0,85228.0,0.1173534]
[1742465899017,0.20603209,85231.0,85230.0,0.1173506]
[1742465900117,0.21699237,85231.0,85230.0,0.1173506]
[1742465900518,0.01096028,85231.0,85230.0,0.1173506]
[1742465900714,0.01096028,85231.0,85228.0,4e-05]
[1742465900919,0.01096028,85230.0,85229.0,0.117352]
[1742465901118,0.01096028,85230.0,85228.0,0.0587161]
[1742465901119,0.01096028,85230.0,85228.0,4e-05]
[1742465901423,0.01096028,85229.0,85228.0,4e-05]
[1742465901719,0.0707,85229.0,85226.0,0.1173549]
[1742465901921,0.04836028,85228.0,85227.0,0.1173548]
[1742465902121,0.1173562,85226.0,85225.0,4e-05]
[1742465902332,0.1173713,85215.0,85214.0,4e-05]
[1742465902623,0.01096102,85215.0,85214.0,4e-05]
[1742465902811,0.1173823,85207.0,85206.0,0.3608]
[1742465903019,0.0146,85207.0,85206.0,0.3608]
[1742465903222,0.1,85207.0,85206.0,0.4781837]
[1742465903723,0.0318,85207.0,85206.0,0.4781837]
[1742465903922,0.1,85207.0,85206.0,0.4781837]
[1742465904120,0.0931,85207.0,85206.0,0.4781837]
[1742465904528,0.0674,85207.0,85206.0,0.4781837]
[1742465904728,0.1356,85207.0,85202.0,0.1173886]
[1742465904927,0.0389,85206.0,85205.0,0.1173851]
[1742465905125,0.14985172,85206.0,85205.0,0.1173851]
[1742465905326,0.14985172,85206.0,85200.0,0.105]
[1742465905327,0.18545172,85206.0,85200.0,0.105]
[1742465905535,0.3608,85201.0,85200.0,0.105]
[1742465905715,0.4608,85201.0,85200.0,0.222392]
[1742465906017,0.47174688,85201.0,85200.0,0.222392]
[1742465906222,0.5099906,85201.0,85200.0,0.105]
[1742465906525,0.4608,85201.0,85200.0,0.222392]
[1742465906823,0.47174133,85201.0,85200.0,0.222392]
[1742465907017,0.52093193,85201.0,85200.0,0.105]
[1742465907221,0.59613193,85201.0,85200.0,0.105]
[1742465907419,0.54694133,85201.0,85200.0,0.222392]
[1742465907629,0.44694133,85201.0,85200.0,0.222392]
[1742465907929,0.436,85201.0,85200.0,0.222392]
[1742465908224,0.0738,85208.0,85207.0,0.1173823]
[1742465910625,0.1174023,85201.0,85200.0,0.105]
[1742465910840,0.3608,85201.0,85200.0,0.10504]
[1742465911631,0.4334,85201.0,85200.0,0.2224437]
[1742465911825,0.4334,85201.0,85200.0,0.2224037]
[1742465912432,0.4334,85201.0,85200.0,0.105]
[1742465912637,0.5334,85201.0,85200.0,0.2224037]
[1742465913032,0.4652,85201.0,85200.0,0.2224037]
[1742465913231,0.498,85201.0,85200.0,0.2224037]
[1742465913432,0.498,85201.0,85200.0,0.2601037]
[1742465913433,0.4608,85201.0,85200.0,0.2601037]
[1742465913839,0.3926,85201.0,85200.0,0.2601037]
[1742465914040,0.4608,85201.0,85200.0,0.2601037]
[1742465914253,0.3608,85201.0,85200.0,0.1427]
[1742465914454,0.3608,85201.0,85200.0,0.105]
[1742465914758,0.3608,85201.0,85200.0,0.2224037]
[1742465915150,0.3608,85201.0,85200.0,0.2614037]
[1742465915657,0.3608,85201.0,85200.0,0.2991037]
[1742465916444,0.4782139,85201.0,85200.0,0.105]
[1742465916658,0.3608,85201.0,85200.0,0.105]
[1742465917356,0.4782141,85201.0,85200.0,0.105]
[1742465917549,0.3608,85201.0,85200.0,0.105]
[1742465917748,0.4322,85201.0,85200.0,0.2224155]
[1742465917950,0.4322,85201.0,85182.0,0.05872]
[1742465917951,0.4922,85201.0,85181.0,4e-05]
[1742465918154,0.7216,85183.0,85181.0,4e-05]
[1742465918444,0.1888403,85182.0,85181.0,4e-05]
[1742465918647,0.0714,85182.0,85181.0,0.01500607]
[1742465918852,0.0714,85182.0,85181.0,0.1174816]
[1742465919153,0.2714,85182.0,85145.0,0.00064]
[1742465919358,0.1174803,85153.0,85152.0,0.0352]
[1742465919546,0.5782816,85152.0,85147.0,0.0386]
[1742465919751,0.4608,85152.0,85151.0,0.34164338]
[1742465919947,0.3608,85175.0,85163.0,0.1174665]
[1742465920153,0.3608,85175.0,85174.0,0.1174513]
[1742465921260,0.4608,85175.0,85174.0,0.1174513]
[1742465921962,0.3608,85178.0,85177.0,0.1174472]
[1742465922165,0.3632,85178.0,85177.0,0.1174472]
[1742465922348,0.17184362,85183.0,85182.0,0.1174403]
[1742465922857,0.27184362,85183.0,85182.0,0.3674403]
[1742465923164,0.3608,85201.0,85182.0,0.4]
[1742465923359,0.0394,85196.0,85188.0,0.3608]
[1742465923556,0.0359,85195.0,85189.0,0.037]
[1742465923863,0.3608,85194.0,85189.0,0.0763]
[1742465924065,0.3608,85194.0,85189.0,0.037]
[1742465924066,0.4002,85194.0,85189.0,0.037]
[1742465924255,0.0359,85193.0,85185.0,4e-05]
[1742465924458,0.3608,85187.0,85185.0,0.1174761]
[1742465924655,0.4608,85187.0,85186.0,0.1544347]
[1742465925164,0.417,85187.0,85186.0,0.1544347]
[1742465925354,0.10017606,85200.0,85192.0,0.1174255]
[1742465925551,0.10017606,85200.0,85186.0,0.037]
[1742465925757,0.3608,85195.0,85193.0,0.058712]
[1742465925953,0.4608,85195.0,85194.0,0.117423]
[1742465926159,0.4169,85195.0,85194.0,0.117423]
[1742465926355,0.4608,85195.0,85194.0,0.157423]
[1742465926561,0.1,85195.0,85194.0,0.157423]
[1742465926864,0.1,85195.0,85175.0,4e-05]
[1742465926865,0.5708,85195.0,85175.0,4e-05]
[1742465927064,0.3608,85187.0,85181.0,0.1174413]
[1742465927260,0.0389,85186.0,85181.0,0.0587201]
[1742465927458,0.0389,85186.0,85179.0,4e-05]
[1742465927660,0.3089,85186.0,85179.0,4e-05]
[1742465927862,0.1174375,85184.0,85183.0,0.00017606]
[1742465928057,0.4974375,85184.0,85183.0,0.00017606]
[1742465928262,0.38,85184.0,85183.0,0.00017606]
[1742465928460,0.38,85184.0,85183.0,0.11761496]
[1742465928461,0.3359,85184.0,85183.0,0.11761496]
[1742465928957,0.0559,85184.0,85183.0,0.11761496]
[1742465929158,0.0558,85184.0,85183.0,0.11761496]
[1742465929658,0.1,85184.0,85183.0,0.11761496]
[1742465930667,0.073,85184.0,85183.0,0.11761496]
[1742465930857,0.0557,85184.0,85183.0,0.11761496]
[1742465931067,0.4608,85184.0,85183.0,0.11761496]
[1742465932062,0.1,85184.0,85183.0,0.11761496]
[1742465932263,0.11269343,85184.0,85183.0,0.11761496]
[1742465932771,0.15709343,85184.0,85183.0,0.15471496]
[1742465932962,0.11269343,85184.0,85183.0,0.11761496]
[1742465933162,0.15709343,85184.0,85183.0,0.11761496]
[1742465933565,0.15709343,85184.0,85183.0,0.19251496]
[1742465933767,0.11249343,85184.0,85183.0,0.19251496]
[1742465933967,0.0392,85199.0,85198.0,0.1174182]
[1742465934164,0.1392,85199.0,85198.0,0.1174182]
[1742465934465,0.1,85199.0,85198.0,0.1174182]
[1742465934658,0.1,85199.0,85196.0,0.0587099]
[1742465934659,0.0587126,85193.0,85177.0,0.0587229]
[1742465934862,0.0587126,85193.0,85170.0,0.18196]
[1742465934863,0.1,85191.0,85190.0,0.1174292]
[1742465935267,0.0551,85191.0,85190.0,0.1174292]
[1742465935465,0.1,85191.0,85190.0,0.1174292]
[1742465935859,0.1,85191.0,85190.0,0.1577292]
[1742465936066,0.1,85191.0,85183.0,0.00017606]
[1742465936269,0.1,85191.0,85188.0,0.1761473]
[1742465936471,0.1,85191.0,85188.0,0.1761469]
[1742465936763,0.11,85191.0,85190.0,0.1174292]
[1742465936969,0.0349,85191.0,85188.0,0.0587158]
[1742465937166,0.1174334,85187.0,85186.0,4e-05]
[1742465937363,0.11,85187.0,85186.0,4e-05]
[1742465937566,0.11,85187.0,85186.0,0.1174747]
[1742465937872,0.011,85187.0,85186.0,0.1174347]
[1742465938058,0.1,85187.0,85186.0,0.1174347]
[1742465938663,0.1,85187.0,85186.0,0.1571347]
[1742465938869,0.1,85187.0,85186.0,0.1174347]
[1742465939269,0.0546,85187.0,85186.0,0.1174347]
[1742465940164,0.3608,85196.0,85195.0,0.1174223]
[1742465940369,0.3608,85196.0,85192.0,0.058713]
[1742465940560,0.1174289,85191.0,85186.0,0.3608]
[1742465940777,0.1174334,85187.0,85184.0,4e-05]
[1742465941072,0.4782361,85185.0,85184.0,4e-05]
[1742465941369,0.9991,85185.0,85169.0,0.117458]
[1742465941575,0.1174623,85166.0,85165.0,0.3608]
[1742465941871,0.1174623,85166.0,85150.0,0.17964]
[1742465941872,0.0587391,85155.0,85141.0,0.4009]
[1742465942060,0.1174941,85143.0,85142.0,0.0382]
[1742465942261,0.0587462,85145.0,85142.0,0.0382]
[1742465942463,0.0369,85144.0,85142.0,0.1174954]
[1742465942769,0.0369,85144.0,85140.0,0.0587485]
[1742465942770,0.00017616,85151.0,85150.0,0.1174844]
[1742465943365,0.00017616,85151.0,85150.0,0.1556844]
[1742465943669,0.00017616,85151.0,85150.0,0.1956844]
[1742465943871,0.00017616,85151.0,85150.0,0.3750444]
[1742465944176,0.0369,85159.0,85158.0,0.1174734]
[1742465944378,0.0387,85161.0,85160.0,0.1174706]
[1742465944772,0.0383,85168.0,85167.0,0.1174609]
[1742465944963,0.0776,85168.0,85167.0,0.1174609]
[1742465945162,0.0776,85168.0,85159.0,0.4006]
[1742465945467,0.1,85142.0,85133.0,0.18793556]
[1742465945667,0.1,85140.0,85139.0,0.0754]
[1742465945872,0.2174982,85140.0,85139.0,0.0754]
[1742465946172,0.1776,85140.0,85139.0,0.0754]
[1742465946566,0.2950982,85140.0,85139.0,0.0754]
[1742465946770,0.1776,85140.0,85139.0,0.0754]
[1742465947072,0.5350982,85140.0,85139.0,0.0388]
[1742465947278,0.4176,85140.0,85134.0,4e-05]
[1742465947467,0.0399,85139.0,85134.0,0.1175464]
[1742465947667,0.2699,85139.0,85136.0,0.1175034]
[1742465947977,0.0762,85138.0,85137.0,0.1175023]
[1742465948177,0.1762,85138.0,85137.0,0.1175023]
[1742465948774,0.1762,85138.0,85136.0,0.117503]
[1742465948973,0.1762,85138.0,85133.0,4e-05]
[1742465949279,0.537,85138.0,85137.0,0.1175023]
[1742465949985,0.4911,85138.0,85137.0,0.1175023]
[1742465950279,0.1762,85138.0,85137.0,0.1571023]
[1742465950477,0.3349505,85138.0,85135.0,4e-05]
[1742465950681,0.2175092,85132.0,85131.0,0.00017616]
[1742465950878,0.4608,85132.0,85131.0,0.00017616]
[1742465951273,0.7208,85132.0,85131.0,0.00017616]
[1742465951577,0.7601,85132.0,85131.0,0.00017616]
[1742465951883,0.0932,85132.0,85131.0,0.11768676]
[1742465952269,0.1393,85132.0,85131.0,0.15728676]
[1742465952476,0.0711,85132.0,85131.0,0.15728676]
[1742465952970,0.1393,85132.0,85131.0,0.15728676]
[1742465953180,0.1,85132.0,85131.0,0.51808676]
[1742465953376,0.0318,85132.0,85131.0,0.51808676]
[1742465953576,0.0776,85140.0,85131.0,0.40057616]
[1742465953874,0.3608,85132.0,85129.0,4e-05]
[1742465954081,0.07134391,85141.0,85130.0,0.117512]
[1742465954082,0.4384,85131.0,85130.0,0.117512]
[1742465954477,0.4384,85131.0,85129.0,4e-05]
[1742465954888,0.4384,85131.0,85115.0,0.0372]
[1742465955188,0.4384,85131.0,85130.0,0.117512]
[1742465955885,0.0776,85131.0,85130.0,0.117512]
[1742465956185,0.13707921,85136.0,85135.0,0.1175051]
[1742465956573,0.13707921,85136.0,85135.0,0.1557051]
[1742465956774,0.13707921,85136.0,85135.0,0.1175051]
[1742465957574,0.0769,85141.0,85140.0,0.1174982]
[1742465957776,0.17134901,85142.0,85141.0,0.1174968]
[1742465958173,0.17134901,85142.0,85141.0,0.1556968]
[1742465958379,0.206151,85151.0,85144.0,0.0587461]
[1742465958569,0.0415,85169.0,85159.0,0.117472]
[1742465958774,0.3926,85160.0,85159.0,0.117472]
[1742465958973,0.3928,85160.0,85159.0,0.117472]
[1742465959180,0.7308,85160.0,85159.0,0.117472]
[1742465959373,0.3608,85160.0,85157.0,0.0587431]
[1742465959680,0.3608,85160.0,85159.0,0.1174838]
[1742465959885,0.4708,85160.0,85159.0,0.1174838]
[1742465960076,0.4708,85160.0,85151.0,0.00017616]
[1742465960279,0.4708,85160.0,85155.0,0.058744]
[1742465960479,0.5295414,85160.0,85151.0,0.00017616]
[1742465960679,0.3608,85152.0,85151.0,0.00017616]
[1742465960879,0.5908,85152.0,85151.0,0.11767096]
[1742465961085,0.3608,85152.0,85151.0,0.11767096]
[1742465962075,0.6208,85152.0,85151.0,0.11767096]
[1742465963577,0.6208,85152.0,85133.0,0.1762781]
[1742465963887,0.7216,85138.0,85137.0,0.1175132]
[1742465964070,1.0016,85138.0,85137.0,0.1175132]
[1742465964471,1.092157,85138.0,85134.0,4e-05]
[1742465964676,0.0385,85137.0,85136.0,0.1175155]
[1742465964880,0.4085,85137.0,85136.0,0.1175155]
[1742465965073,0.3403,85137.0,85136.0,0.1571155]
[1742465965276,0.4085,85137.0,85136.0,0.1571155]
[1742465965580,0.1,85137.0,85136.0,0.1571155]
[1742465965882,0.1,85137.0,85136.0,0.1967155]
[1742465966087,0.0318,85137.0,85136.0,0.1967155]
[1742465966284,0.1,85137.0,85136.0,0.1967155]
[1742465966477,0.0609,85137.0,85136.0,0.1967155]
[1742465966678,0.00017616,85145.0,85142.0,0.0587536]
[1742465966883,0.00017616,85145.0,85144.0,0.1175045]
[1742465967083,0.36097616,85145.0,85144.0,0.1175045]
[1742465967283,0.00017616,85145.0,85144.0,0.1954045]
[1742465967689,0.3608,85152.0,85151.0,0.1174949]
[1742465968382,0.28962948,85152.0,85151.0,0.1174949]
[1742465968582,0.3608,85171.0,85170.0,0.1174687]
[1742465968787,0.4083,85192.0,85170.0,0.1174687]
[1742465968788,0.4083,85192.0,85172.0,0.1174656]
[1742465968976,0.28936671,85201.0,85192.0,0.1174383]
[1742465968977,0.038,85199.0,85192.0,0.1174383]
[1742465969177,0.1376214,85193.0,85192.0,0.1174383]
[1742465969489,0.27528456,85201.0,85200.0,0.1174273]
[1742465969793,0.27528456,85201.0,85200.0,0.4782273]
[1742465970178,0.3608,85234.0,85211.0,0.0587054]
[1742465970377,0.3608,85234.0,85222.0,0.117397]
[1742465971285,0.00017606,85231.0,85222.0,0.117397]
[1742465971677,0.48286509,85223.0,85222.0,0.117397]
[1742465972083,0.48286509,85223.0,85222.0,0.154997]
[1742465972279,0.38286509,85223.0,85222.0,0.154997]
[1742465972480,0.24371797,85224.0,85223.0,0.1173956]
[1742465972681,0.24371797,85224.0,85223.0,0.4049956]
[1742465972885,0.34371797,85224.0,85222.0,0.3608]
[1742465973081,0.0762,85223.0,85222.0,0.3608]
[1742465973282,0.1762,85223.0,85222.0,0.3608]
[1742465973495,0.1762,85223.0,85222.0,0.478197]
[1742465973792,0.1762,85223.0,85216.0,0.3608]
[1742465973793,0.3162,85223.0,85216.0,0.3608]
[1742465973983,0.3162,85223.0,85222.0,0.117397]
[1742465974678,0.1173997,85220.0,85219.0,4e-05]
[1742465974885,0.1174038,85217.0,85216.0,0.3608]
[1742465975189,0.1174245,85202.0,85201.0,0.3608]
[1742465975486,0.3474245,85202.0,85201.0,0.3608]
[1742465975990,0.3474245,85202.0,85201.0,0.4782258]
[1742465976402,0.4280245,85202.0,85201.0,0.4782258]
[1742465976691,0.1174355,85194.0,85193.0,0.00017606]
[1742465976901,0.0587191,85192.0,85168.0,0.64146575]
[1742465977082,0.3608,85181.0,85172.0,4e-05]
[1742465977286,0.0587291,85178.0,85177.0,0.1174589]
[1742465977681,0.3087291,85178.0,85177.0,0.1174589]
[1742465977881,0.3087291,85178.0,85176.0,4e-05]
[1742465977882,0.1174589,85177.0,85176.0,4e-05]
[1742465978094,0.1762169,85166.0,85165.0,0.1174746]
[1742465978291,0.6695384,85166.0,85165.0,0.1174746]
[1742465978799,0.7013384,85166.0,85165.0,0.1174746]
[1742465978988,0.7808384,85166.0,85165.0,0.1174746]
[1742465979183,0.7903,85166.0,85165.0,0.1174746]
[1742465979389,0.7221,85166.0,85165.0,0.1174746]
[1742465979585,0.4295,85166.0,85165.0,0.1174746]
[1742465979800,0.0911,85166.0,85165.0,0.1174746]
[1742465979990,0.1326,85166.0,85165.0,0.1174746]
[1742465980195,0.1386,85166.0,85165.0,0.1174746]
[1742465980395,0.1386,85166.0,85165.0,0.1559746]
[1742465980588,0.4160741,85166.0,85160.0,0.058781]
[1742465980898,0.117481,85161.0,85160.0,4e-05]
[1742465981094,0.127481,85161.0,85160.0,4e-05]
[1742465981287,0.299521,85161.0,85160.0,4e-05]
[1742465981491,0.1174906,85154.0,85153.0,4e-05]
[1742465981691,0.1175003,85147.0,85139.0,0.3608]
[1742465981995,0.1175003,85147.0,85146.0,4e-05]
[1742465982493,0.1275003,85147.0,85146.0,4e-05]
[1742465982687,0.1275003,85147.0,85145.0,0.1175023]
[1742465982998,0.1175031,85145.0,85144.0,4e-05]
[1742465983191,0.1175031,85145.0,85144.0,0.1175444]
[1742465983192,0.1275031,85145.0,85144.0,0.1175444]
[1742465983397,0.1649031,85145.0,85144.0,0.1175444]
[1742465983598,0.2058031,85145.0,85144.0,0.1175444]
[1742465983895,0.2058031,85145.0,85144.0,4e-05]
[1742465984487,0.0913,85145.0,85144.0,0.1175444]
[1742465984687,0.0913,85145.0,85130.0,0.3608]
[1742465984889,0.1175293,85126.0,85125.0,0.0411]
[1742465985084,0.1175334,85123.0,85121.0,0.0426]
[1742465985293,0.1175334,85123.0,85119.0,0.0411]
[1742465985492,0.2593334,85123.0,85118.0,0.3608]
[1742465985683,0.3275334,85123.0,85118.0,0.3608]
[1742465985884,0.2593334,85123.0,85118.0,0.3608]
[1742465986094,0.2175389,85119.0,85118.0,0.3608]
[1742465986404,0.4193389,85119.0,85118.0,0.3608]
[1742465986584,0.6620589,85119.0,85118.0,0.3608]
[1742465986791,0.37,85119.0,85118.0,0.4783403]
[1742465987490,0.3283,85119.0,85118.0,0.4783403]
[1742465987684,0.4168,85119.0,85118.0,0.4783403]
[1742465988094,0.0468,85119.0,85118.0,0.4783403]
[1742465988288,0.00436788,85119.0,85118.0,0.4783403]
[1742465989189,0.00436788,85119.0,85118.0,0.5223403]
[1742465989896,0.00436788,85119.0,85118.0,0.3608]
[1742465990099,0.36190678,85119.0,85118.0,0.3608]
[1742465990605,0.24436788,85119.0,85118.0,0.3608]
[1742465990796,0.36190678,85119.0,85118.0,0.3608]
[1742465990997,0.44560678,85119.0,85118.0,0.3608]
[1742465991193,0.32806788,85119.0,85118.0,0.4783403]
[1742465991700,0.28766788,85119.0,85118.0,0.4783403]
[1742465991895,0.00436788,85119.0,85118.0,0.4783403]
[1742465992098,0.00436788,85119.0,85118.0,0.5616403]
[1742465992598,0.105,85119.0,85118.0,0.4024]
[1742465992797,0.105,85119.0,85118.0,0.5199403]
[1742465993499,0.105,85119.0,85118.0,0.5634403]
[1742465993801,0.0433,85130.0,85129.0,0.1175251]
[1742465993993,0.1433,85130.0,85129.0,0.1175251]
[1742465994193,0.1157,85130.0,85129.0,0.1175251]
[1742465994395,0.1839,85130.0,85129.0,0.1175251]
[1742465994995,0.1939,85130.0,85129.0,0.1175251]
[1742465995194,0.1,85130.0,85129.0,0.1610251]
[1742465996100,0.1,85130.0,85128.0,0.0416]
[1742465996407,0.0868,85129.0,85128.0,0.1175265]
[1742465996593,0.1868,85129.0,85128.0,0.1175265]
[1742465996795,0.3701,85129.0,85128.0,0.1175265]
[1742465997099,0.3668,85129.0,85128.0,0.1583265]
[1742465997294,0.0428,85129.0,85128.0,0.1997265]
[1742465997796,0.005,85130.0,85129.0,0.1175251]
[1742465997996,0.005,85130.0,85129.0,0.1997251]
[1742465999300,0.00017616,85131.0,85130.0,0.1175237]
[1742465999604,0.00017616,85131.0,85130.0,0.2033237]
[1742465999806,0.00017616,85131.0,85130.0,0.1608237]
[1742466000003,0.01017616,85131.0,85130.0,0.1608237]
[1742466000591,0.01517616,85131.0,85119.0,0.3608]
[1742466000796,0.01517616,85131.0,85112.0,0.0858]
[1742466000797,0.3608,85126.0,85112.0,0.0858]
[1742466001090,0.0829,85125.0,85121.0,0.1175348]
[1742466001291,0.1029,85125.0,85112.0,0.0858]
[1742466001497,0.1029,85125.0,85120.0,4e-05]
[1742466001696,0.1175362,85121.0,85120.0,4e-05]
[1742466001898,0.1175449,85115.0,85110.0,0.3608]
[1742466002195,0.38,85115.0,85111.0,0.0588149]
[1742466002397,0.1376,85114.0,85113.0,0.1175458]
[1742466002594,0.1476,85114.0,85113.0,0.1175458]
[1742466002794,0.1066,85114.0,85113.0,0.1175458]
[1742466002997,0.0524,85114.0,85113.0,0.1578458]
[1742466003708,0.1,85114.0,85113.0,0.1578458]
[1742466003905,0.0011,85114.0,85113.0,0.1578458]
[1742466004203,0.0071,85125.0,85124.0,0.117532]
[1742466004402,0.1,85125.0,85124.0,0.117532]
[1742466004608,0.1,85125.0,85124.0,0.478332]
[1742466004804,0.34,85125.0,85124.0,0.3608]
[1742466005007,0.2718,85125.0,85117.0,0.3608]
[1742466005210,0.1175403,85118.0,85117.0,0.3608]
[1742466005508,0.4575403,85118.0,85117.0,0.3608]
[1742466006107,0.34,85118.0,85117.0,0.4783417]
[1742466006298,0.3013,85118.0,85117.0,0.4783417]
[1742466006498,0.4980403,85118.0,85117.0,0.3608]
[1742466007003,0.4298403,85118.0,85117.0,0.3608]
[1742466007196,0.6734403,85118.0,85117.0,0.3608]
[1742466007392,0.5559,85118.0,85117.0,0.3608]
[1742466007606,0.5559,85118.0,85117.0,0.4783417]
[1742466008200,0.3855,85118.0,85117.0,0.4783417]
[1742466008409,0.3855,85118.0,85117.0,0.1175417]
[1742466008610,0.3855,85118.0,85117.0,0.1605417]
[1742466009897,0.3855,85118.0,85117.0,0.17584757]
[1742466010103,0.3855,85118.0,85117.0,0.13284757]
[1742466010307,0.3173,85118.0,85117.0,0.01530587]
[1742466010612,0.3173,85118.0,85117.0,0.49364757]
[1742466010613,0.345,85118.0,85117.0,0.49364757]
[1742466010810,0.10491999,85118.0,85117.0,0.49364757]
[1742466011111,0.0368,85118.0,85117.0,0.49364757]
[1742466011507,0.1192,85129.0,85128.0,0.1175265]
[1742466011713,0.4374,85129.0,85128.0,0.4783265]
[1742466012212,0.4374,85129.0,85128.0,0.37610587]
[1742466012414,0.3692,85129.0,85128.0,0.49363237]
[1742466012609,0.4374,85129.0,85128.0,0.49363237]
[1742466013198,0.3692,85129.0,85128.0,0.37610587]
[1742466013404,0.4374,85129.0,85128.0,0.49363237]
[1742466013608,0.9157251,85129.0,85128.0,0.01530587]
[1742466013797,0.0587633,85128.0,85121.0,0.1175361]
[1742466013999,0.0587639,85127.0,85125.0,4e-05]
[1742466014201,0.1175293,85126.0,85125.0,4e-05]
[1742466014407,0.4875293,85126.0,85125.0,4e-05]
[1742466014602,0.4651293,85126.0,85125.0,4e-05]
[1742466014805,0.0587695,85119.0,85111.0,0.042]
[1742466015012,0.0458,85118.0,85117.0,0.1175417]
[1742466015212,0.1658,85118.0,85117.0,0.13245826]
[1742466015607,0.1173,85118.0,85117.0,0.13245826]
[1742466015807,0.1658,85118.0,85117.0,0.13245826]
[1742466016413,0.2833521,85118.0,85117.0,0.01491656]
[1742466016708,0.1658,85118.0,85114.0,0.0587783]
[1742466016910,0.043,85117.0,85116.0,0.1175548]
[1742466017213,0.043,85117.0,85115.0,4e-05]
[1742466017214,0.1175548,85116.0,85115.0,4e-05]
[1742466017404,0.413,85116.0,85115.0,4e-05]
[1742466017600,0.5735548,85116.0,85115.0,4e-05]
[1742466017907,0.456,85116.0,85099.0,0.0453]
[1742466018105,0.456,85116.0,85114.0,0.1175562]
[1742466018106,0.16844,85115.0,85114.0,0.1175562]
[1742466018303,0.50004,85115.0,85114.0,0.1175562]
[1742466018502,0.466,85115.0,85114.0,0.1175562]
[1742466018813,0.466,85115.0,85113.0,0.1175978]
[1742466018814,0.466,85115.0,85113.0,4e-05]
[1742466019019,0.466,85115.0,85100.0,0.105]
[1742466019208,0.2175702,85105.0,85104.0,0.1175714]
[1742466019404,0.1175755,85101.0,85100.0,0.105]
[1742466019609,0.29,85101.0,85100.0,0.2225769]
[1742466020015,0.4980755,85101.0,85100.0,0.105]
[1742466020809,0.4980755,85101.0,85100.0,0.2225769]
[1742466021207,0.1175783,85099.0,85098.0,4e-05]
[1742466021411,0.4475783,85099.0,85098.0,4e-05]
[1742466021616,0.4475783,85099.0,85098.0,0.1176197]
[1742466021809,0.33,85099.0,85098.0,0.1175797]
[1742466022622,0.335,85099.0,85098.0,0.1175797]
[1742466023224,0.335,85099.0,85096.0,4e-05]
[1742466023522,0.0893,85098.0,85097.0,0.1175799]
[1742466023719,0.1093,85098.0,85097.0,0.1175799]
[1742466023919,0.1093,85098.0,85081.0,0.3608]
[1742466023920,0.2593,85098.0,85081.0,0.3608]
[1742466024128,0.1176156,85072.0,85071.0,0.0428]
[1742466024318,0.1176156,85072.0,85051.0,0.0588223]
[1742466024319,1.15486,85072.0,85018.0,0.3608]
[1742466024617,0.1176474,85049.0,85048.0,0.0428]
[1742466024824,0.1176474,85049.0,85048.0,0.1604488]
[1742466024825,0.4608,85049.0,85048.0,0.1604488]
[1742466025017,0.3608,85049.0,85048.0,0.1604488]
[1742466025615,0.3608,85056.0,85055.0,0.1176391]
[1742466025919,0.6308,85056.0,85055.0,0.1176391]
[1742466026119,0.6308,85056.0,85046.0,0.0588253]
[1742466026120,0.6308,85056.0,85044.0,0.0588267]
[1742466026314,0.3608,85071.0,85070.0,0.1176184]
[1742466026719,0.3608,85091.0,85072.0,0.0588071]
[1742466027028,0.6108,85091.0,85085.0,0.1175974]
[1742466027214,0.6108,85091.0,85086.0,0.0425]
[1742466027909,0.6108,85091.0,85090.0,0.1175907]
[1742466028314,0.6108,85091.0,85080.0,0.00017637]
[1742466028514,0.3608,85081.0,85080.0,0.00017637]
[1742466028912,0.3658,85091.0,85090.0,0.1175907]
[1742466029113,0.3608,85101.0,85093.0,0.1175861]
[1742466029317,0.3608,85101.0,85090.0,0.0587947]
[1742466029318,0.26017637,85097.0,85094.0,0.1599851]
[1742466029617,0.00017637,85097.0,85096.0,0.1175824]
[1742466029924,0.3608,85101.0,85100.0,0.1175769]
[1742466030114,0.0318,85097.0,85096.0,0.0424]
[1742466030516,0.0318,85097.0,85096.0,0.1599824]
[1742466031023,0.3608,85101.0,85100.0,0.1175769]
[1742466031525,0.4307,85101.0,85100.0,0.1175769]
[1742466031721,0.4608,85101.0,85100.0,0.1175769]
[1742466031911,0.3926,85101.0,85100.0,0.1175769]
[1742466032114,0.3926,85101.0,85096.0,0.05141375]
[1742466032115,0.005,85097.0,85096.0,0.16899615]
[1742466032322,0.005,85097.0,85096.0,0.33463615]
[1742466032621,0.0368,85097.0,85096.0,0.3256224]